Workbook

Sheet FRONT PAGE
X1: Choose your school
X2: Akiva | Y2: 3520
X3: All Saints' CE School (N20) | Y3: 3317
X4: All Saints' CE School (NW2) | Y4: 3300
X5: Annunciation RC Infant School | Y5: 3500
X6: Annunciation RC Junior School | Y6: 3514
D7: 2017-18 CFR RETURN | X7: Barnfield School | Y7: 2002
X8: Beis Yaakov | Y8: 2079
D9: Choose your school | F9: =VLOOKUP(D9,X:Y,2,0) -> 0 | X9: Beit Shvidler | Y9: 3524
X10: Bell Lane School | Y10: 2003
X11: Blessed Dominic RC School | Y11: 3511
X12: Brookhill Nursery | Y12: 1000
X13: Brookland Infant School | Y13: 2008
X14: Brookland Junior School | Y14: 2007
X15: Brunswick Park School | Y15: 2009
X16: Chalgrove School | Y16: 2067
X17: Childs Hill School | Y17: 2010
X18: Christ Church CE School | Y18: 3302
X19: Church Hill School | Y19: 2011
X20: Colindale School | Y20: 2014
X21: Coppetts Wood School | Y21: 2015
X22: Courtland School | Y22: 2016
X23: Cromer Road School | Y23: 2017
X24: Danegrove School | Y24: 2073
X25: Deansbrook Infant School | Y25: 2019
X26: Dollis Infant School | Y26: 2021
D27: Contacts; | X27: Dollis Junior School | Y27: 5200
D28: Claudette James 0208 359 7132 | X28: Edgware Primary | Y28: 2023
D29: Nicole Gibson 0208 359 7223 Tues/Weds/Thurs | X29: Fairway School | Y29: 2024
X30: Finchley Catholic High School | Y30: 5405
X31: Foulds School | Y31: 2025
X32: Friern Barnet School | Y32: 4003
X33: Frith Manor School | Y33: 2026
X34: Garden Suburb Infant School | Y34: 2028
X35: Garden Suburb Junior School | Y35: 2027
X36: Goldbeaters School | Y36: 2029
X37: Hampden Way Nursery | Y37: 1001
X38: Hasmonean Primary School | Y38: 3516
X39: Hollickwood School | Y39: 2031
X40: Holly Park School | Y40: 2032
X41: Holy Trinity CE School | Y41: 3304
X42: JCoSS | Y42: 5427
X43: Livingstone School | Y43: 2036
X44: Manorside School | Y44: 2037
X45: Mapledown School | Y45: 7010
X46: Martin Primary | Y46: 3523
X47: Mathilda Marks Kennedy School | Y47: 5948
X48: Menorah Foundation School | Y48: 5949
X49: Menorah High School for Girls | Y49: 4004
X50: Menorah Primary School | Y50: 3513
X51: Monken Hadley CE School | Y51: 3305
X52: Monkfrith School | Y52: 2042
X53: Moss Hall Infant School | Y53: 2044
X54: Moss Hall Junior School | Y54: 2043
X55: Moss Hall Nursery | Y55: 1002
X56: Northside School | Y56: 2045
X57: Northway School | Y57: 7005
X58: Oakleigh School | Y58: 7009
X59: Orion School | Y59: 2077
X60: Osidge School | Y60: 5201
X61: Our Lady of Lourdes RC School | Y61: 3501
X62: Pardes House School | Y62: 2078
X63: Queenswell Infant School | Y63: 2071
X64: Queenswell Junior School | Y64: 2072
X65: Rosh Pinah School | Y65: 3512
X66: Sacks Morasha | Y66: 2041
X67: Sacred Heart RC School | Y67: 3510
X68: St. Agnes' RC School | Y68: 3502
X69: St. Andrew's CE School | Y69: 3315
X70: St. Catherine's RC School | Y70: 3504
X71: St. James' Catholic High School | Y71: 5407
X72: St. John's CE School (N11) | Y72: 3307
X73: St. John's CE School (N20) | Y73: 3309
X74: St. Joseph's RC Primary School | Y74: 3509
X75: St. Margaret's Nursery | Y75: 1003
X76: St. Mary's & St. Johns Primary | Y76: 3521
X77: St. Mary's CE School (EN4) | Y77: 3312
X78: St. Mary's CE School (N3) | Y78: 3311
X79: St. Michael's Catholic Grammar School | Y79: 5404
X80: St. Paul's CE School (N11) | Y80: 3313
X81: St. Paul's CE School (NW7) | Y81: 3314
X82: St. Theresa's RC School | Y82: 3507
X83: St. Vincent's RC School | Y83: 3506
X84: Summerside School | Y84: 2052
X85: Sunnyfields School | Y85: 2070
X86: Trent CE School | Y86: 3316
X87: Tudor School | Y87: 2055
X88: Underhill School | Y88: 2057
X89: Wessex Gardens School | Y89: 2076
X90: Whitings Hill School | Y90: 2060
X91: Woodcroft Primary | Y91: 3518
X92: Woodridge School | Y92: 2054
X93: Northgate | Y93: 1102
X94: The Pavilion | Y94: 1100
X98: =COUNTA(X2:X94) -> 93

Sheet CFR Return
B3: School DfE No. | C3: ='FRONT PAGE'!$F$9 -> 0 | E3: ='FRONT PAGE'!$F$9 -> 0
A6: CFR Return - Division of Total Revenue and Capital Balances as at 31 March 2018
B8: School | C8: Cost Centre
B9: =VLOOKUP($C$3,$A$71:$C$174,2,0) ->  | C9: =VLOOKUP($C$3,$A$71:$C$174,3,0) -> 
A11: CFR Heading | B11: Description | C11: Balance as at 31.03.18
C12: £
A13: B01 | B13: Committed Revenue Balance
A14: B02 | B14: Uncommitted Revenue Balance
A15: B06 | B15: Community Focussed Extended Schl Bal
B16: Total Revenue Balance | C16: =VLOOKUP($C$9,'Indschls 17-18'!$B$5:$O$116,3,0) -> 
A18: B03 | B18: Devolved Formula Capital Balance
A19: B05 | B19: Other Capital Balances
B21: Total Capital Balance | C21: =VLOOKUP($C$9,'Indschls 17-18'!$B$5:$O$116,8,0) -> 
A24: Please enter figures to show the breakdown of your total revenue and total
A25: capital balance as at 31 March 2018
A28: B01 | B28: Committed Revenue Balances - This includes:
B29: Committed cumulative balance of income, less expenditure from revenue funding sources during the financial year and any committed revenue balances from previous years - this includes revenue funding received during previous financial years from specific grants
B30: Any unspent voluntary income
B31: Any unspent and committed pupil-focused extended school funding and/or grants
B32: Unspent amount of current financial year's Pupil Premium grant
A33: B02 | B33: Uncommitted Revenue Balance - Any revenue balances including
B34: the previous years not committed - Not including any balances from
B35: B01 or B06
A36: B06 | B36: Community Focussed Sch Balance - Any unspent
B37: community focussed school balances (I16 & I17 less E31 &
B38: E32)
A39: B03 | B39: Devolved Formula Capital Balance - Any Devolved
B40: Formula Capital funding not spent
A41: B05 | B41: Other Capital Balances - Other Capital balances not yet spent
B42: can include unspent Direct Revenue Finance or Private capital Income
A45: I certify that the above figures give a fair indication as to the division of our Total
A46: Revenue and Total Capital Balances as at 31 March 2018
A49: Prepared by | B49: _______________________________________
A50: Date | B50: _______________________________________
A51: Signed by Head Teacher | B51: _______________________________________
A52: Date | B52: _______________________________________
A57: Please return this form to Claudette James, Schools Accountancy Section, Building 4 North London Business Park, London N11 1NP - by Friday 8th June
B60: Contacts;
B61: Claudette James 0208 359 7132
B62: Nicole Gibson 0208 359 7223
A71: 1000 | B71: Brookhill Nursery | C71: 10130
A72: 1001 | B72: Hampden Way Nursery | C72: 10131
A73: 1002 | B73: Moss Hall Nursery | C73: 10132
A74: 1003 | B74: St Margaret's Nursery | C74: 10133
A75: 2000 | B75: Parkfield School | C75: 10120
A76: 2002 | B76: Barnfield School | C76: 10044
A77: 2003 | B77: Bell Lane School | C77: 10045
A78: 2007 | B78: Brookland Junior School | C78: 10046
A79: 2008 | B79: Brookland Infant School | C79: 10047
A80: 2009 | B80: Brunswick Park School | C80: 10048
A81: 2010 | B81: Childs Hill School | C81: 10049
A82: 2011 | B82: Church Hill School | C82: 10051
A83: 2014 | B83: Colindale School | C83: 10054
A84: 2015 | B84: Coppetts Wood School | C84: 10055
A85: 2016 | B85: Courtland School | C85: 10056
A86: 2017 | B86: Cromer Road School | C86: 10057
A87: 2018 | B87: Deansbrook Junior School | C87: 10058
A88: 2019 | B88: Deansbrook Infant School | C88: 10059
A89: 2021 | B89: Dollis Infant School | C89: 10061
A90: 2022 | B90: Edgware Junior School | C90: 10062
A91: 2023 | B91: Edgware Infant School | C91: 10063
A92: 2024 | B92: Fairway School | C92: 10064
A93: 2025 | B93: Foulds School | C93: 10065
A94: 2026 | B94: Frith Manor School | C94: 10066
A95: 2027 | B95: Garden Suburb Junior School | C95: 10067
A96: 2028 | B96: Garden Suburb Infant School | C96: 10068
A97: 2029 | B97: Goldbeaters School | C97: 10069
A98: 2031 | B98: Hollickwood School | C98: 10071
A99: 2032 | B99: Holly Park School | C99: 10072
A100: 2036 | B100: Livingstone School | C100: 10074
A101: 2037 | B101: Manorside School | C101: 10075
A102: 2041 | B102: Sacks Morasha | C102: 11381
A103: 2042 | B103: Monkfrith School | C103: 10079
A104: 2043 | B104: Moss Hall Junior School | C104: 10080
A105: 2044 | B105: Moss Hall Infant School | C105: 10081
A106: 2045 | B106: Northside School | C106: 10082
A107: 2052 | B107: Summerside School | C107: 10098
A108: 2054 | B108: Woodridge School | C108: 10109
A109: 2055 | B109: Tudor School | C109: 10101
A110: 2056 | B110: Underhill Junior School | C110: 10102
A111: 2057 | B111: Underhill Infant School | C111: 10103
A112: 2060 | B112: Whitings Hill School | C112: 10105
A113: 2067 | B113: Chalgrove School | C113: 10118
A114: 2070 | B114: Sunnyfields School | C114: 10097
A115: 2071 | B115: Queenswell Infant School | C115: 10119
A116: 2072 | B116: Queenswell Junior School | C116: 10086
A117: 2073 | B117: Danegrove School | C117: 10083
A118: 2074 | B118: Hyde School | C118: 10122
A119: 2076 | B119: Wessex Gardens School | C119: 10124
A120: 2077 | B120: Orion School | C120: 10127
A121: 2078 | B121: Pardes House School | C121: 10129
A122: 2079 | B122: Beis Yaakov | C122: 10128
A123: 3300 | B123: All Saints' CE School (NW2) | C123: 10040
A124: 3302 | B124: Christ Church CE School | C124: 10050
A125: 3304 | B125: Holy Trinity CE School | C125: 10073
A126: 3305 | B126: Monken Hadley CE School | C126: 10078
A127: 3307 | B127: St. John's CE School (N11) | C127: 10089
A128: 3309 | B128: St. John's CE School (N20) | C128: 10116
A129: 3311 | B129: St. Mary's CE School (N3) | C129: 10092
A130: 3312 | B130: St. Mary's CE School (EN4) | C130: 10093
A131: 3313 | B131: St. Paul's CE School (N11) | C131: 10094
A132: 3314 | B132: St. Paul's CE School (NW7) | C132: 10095
A133: 3315 | B133: St. Andrew's CE School | C133: 10099
A134: 3316 | B134: Trent CE School | C134: 10100
A135: 3317 | B135: All Saints' CE School (N20) | C135: 10042
A136: 3500 | B136: Annunciation RC Infant School | C136: 10043
A137: 3501 | B137: Our Lady of Lourdes RC School | C137: 10085
A138: 3502 | B138: St. Agnes' RC School | C138: 10087
A139: 3504 | B139: St. Catherine's RC School | C139: 10088
A140: 3506 | B140: St. Vincent's RC School | C140: 10096
A141: 3507 | B141: St. Theresa's RC School | C141: 10108
A142: 3508 | B142: St. Joseph's RC Infant School | C142: 10111
A143: 3509 | B143: St. Joseph's RC Junior School | C143: 10107
A144: 3510 | B144: Sacred Heart RC School | C144: 10110
A145: 3511 | B145: Blessed Dominic RC School | C145: 10115
A146: 3512 | B146: Rosh Pinah School | C146: 10112
A147: 3513 | B147: Menorah Primary School | C147: 10114
A148: 3514 | B148: Annunciation RC Junior School | C148: 10117
A149: 3516 | B149: Hasmonean Primary School | C149: 10121
A150: 3518 | B150: Woodcroft Primary | C150: 10123
A151: 3519 | B151: Broadfields Primary | C151: 10134
A152: 3520 | B152: Akiva | C152: 11094
A153: 3521 | B153: St. Mary's & St. Johns Primary | C153: 10698
A154: 3522 | B154: Claremont Primary | C154: 10953
A155: 3523 | B155: Martin Primary | C155: 11093
A156: 3524 | B156: Beit Shvidler | C156: 11278
A157: 4003 | B157: Friern Barnet School | C157: 10139
A158: 4004 | B158: Menorah High School for Girls | C158: 11513
A159: 5200 | B159: Dollis Junior School | C159: 10060
A160: 5201 | B160: Osidge School | C160: 10084
A161: 5403 | B161: St Mary's CE High School | C161: 10143
A162: 5404 | B162: St. Michael's Catholic Grammar School | C162: 10148
A163: 5405 | B163: Finchley Catholic High School | C163: 10145
A164: 5407 | B164: St James' Catholic High School | C164: 10142
A165: 5408 | B165: Bishop Douglass RC High | C165: 10137
A166: 5427 | B166: JCoSS | C166: 11174
A167: 5948 | B167: Mathilda Marks Kennedy School | C167: 10125
A168: 5949 | B168: Menorah Foundation School | C168: 10126
A169: 7000 | B169: Oak Lodge School | C169: 10156
A170: 7005 | B170: Northway School | C170: 10157
A171: 7009 | B171: Oakleigh School | C171: 10158
A172: 7010 | B172: Mapledown School | C172: 10159
A173: 1102 | B173: Northgate | C173: 10185
A174: 1100 | B174: The Pavilion | C174: 10188

Sheet Indschls 17-18
C1: Final Individual School Outturn Balances 2017-18
B2: 1 | C2: 2 | D2: 3 | E2: 4 | F2: 5 | G2: 6 | H2: 7 | I2: 8 | J2: 9 | K2: 10 | L2: 11 | M2: 12 | N2: 13 | O2: 14
D3: Rev | E3: Revenue | I3: Cap | J3: Capital | N3: Total Balance
C4: School | D4: As at 31.03.18 | E4: As at 31.03.17 | F4: Balance as % Final Budget Share 14-15 | G4: Increase / (decrease) | I4: As at 31.03.18 | J4: =E4 -> As at 31.03.17 | K4: Increase / (decrease) | M4: As at 31.03.18 | N4: =E4 -> As at 31.03.17 | O4: Increase / (decrease)
A5: 1000 | B5: 10130 | C5: Brookhill | D5: =[50]Brk!$H$66 -> 156379.92 | E5: =VLOOKUP(B5,[51]EOY!$A$3:$F$99,4,0) -> 158461.67 | F5: 0 | G5: =D5-E5 -> -2081.75 | I5: =[50]Brk!$H$76 -> 4720.55 | J5: =VLOOKUP(B5,[51]EOY!$A$3:$F$99,6,0) -> 1.25 | K5: =I5-J5 -> 4719.3 | M5: =D5+I5 -> 161100.47 | N5: =E5+J5 -> 158462.92 | O5: =M5-N5 -> 2637.55
A6: 1001 | B6: 10131 | C6: Hampden Way | D6: =[50]Hmp!$H$70 -> 168833.62 | E6: =VLOOKUP(B6,[51]EOY!$A$3:$F$99,4,0) -> 125592.15 | F6: 0 | G6: =D6-E6 -> 43241.47 | I6: =[50]Hmp!$H$81 -> 3841.38 | J6: =VLOOKUP(B6,[51]EOY!$A$3:$F$99,6,0) -> 8014.7 | K6: =I6-J6 -> -4173.32 | M6: =D6+I6 -> 172675 | N6: =E6+J6 -> 133606.85 | O6: =M6-N6 -> 39068.15
A7: 1002 | B7: 10132 | C7: Moss Hall | D7: =[50]MHN!$H$70 -> 304596.52 | E7: =VLOOKUP(B7,[51]EOY!$A$3:$F$99,4,0) -> 302766.64 | F7: 0 | G7: =D7-E7 -> 1829.88 | I7: =[50]MHN!$H$81 -> 9136.26 | J7: =VLOOKUP(B7,[51]EOY!$A$3:$F$99,6,0) -> 10046 | K7: =I7-J7 -> -909.74 | M7: 313732.78 | N7: =E7+J7 -> 312812.64 | O7: =M7-N7 -> 920.14
A8: 1003 | B8: 10133 | C8: St Margarets | D8: =[50]StM!$H$67 -> 14131.35 | E8: =VLOOKUP(B8,[51]EOY!$A$3:$F$99,4,0) -> 29080.69 | F8: 0 | G8: =D8-E8 -> -14949.34 | I8: =[50]StM!$H$79 -> 5855.55 | J8: =VLOOKUP(B8,[51]EOY!$A$3:$F$99,6,0) -> 1054.85 | K8: =I8-J8 -> 4800.7 | M8: 19986.9 | N8: =E8+J8 -> 30135.54 | O8: =M8-N8 -> -10148.64
C10: Sub Total - Nursery Sector | D10: =SUM(D5:D8) -> 643941.41 | E10: =SUM(E5:E8) -> 615901.15 | F10: =SUM(F5:F8) -> 0 | G10: =SUM(G5:G8) -> 28040.26 | I10: =SUM(I5:I8) -> 23553.74 | J10: =SUM(J5:J8) -> 19116.8 | K10: 4436.94 | L10: 0 | M10: 667495.15 | N10: 635017.95 | O10: 32477.2
A12: 3520 | B12: 11094 | C12: Akiva | D12: =[50]Akv!$H$72 -> 37544.6 | E12: =VLOOKUP(B12,[51]EOY!$A$3:$F$99,4,0) -> -34411.53 | F12: 0 | G12: =D12-E12 -> 71956.13 | I12: 0 | J12: =VLOOKUP(B12,[51]EOY!$A$3:$F$99,6,0) -> 9.313225746e-12 | K12: =I12-J12 -> -9.313225746e-12 | M12: =D12+I12 -> 37544.6 | N12: -34411.53 | O12: =M12-N12 -> 71956.13
A13: 3317 | B13: 10042 | C13: All Saints' CE School (N20) | D13: =[50]AstN20!$H$72 -> 123256.73 | E13: =VLOOKUP(B13,[51]EOY!$A$3:$F$99,4,0) -> 151873.35 | F13: 0 | G13: -28616.62 | I13: =[50]AstN20!$H$83 -> 0 | J13: =VLOOKUP(B13,[51]EOY!$A$3:$F$99,6,0) -> 0 | K13: 0 | M13: 123256.73 | N13: 151873.35 | O13: -28616.62
A14: 3300 | B14: 10040 | C14: All Saints' CE School (NW2) | D14: =[50]AstNW2!$H$71 -> 106584.36 | E14: =VLOOKUP(B14,[51]EOY!$A$3:$F$99,4,0) -> 205150.3 | F14: 0 | G14: -98565.94 | I14: =[50]AstNW2!$H$81 -> 0 | J14: =VLOOKUP(B14,[51]EOY!$A$3:$F$99,6,0) -> 0 | K14: 0 | M14: 106584.36 | N14: 205150.3 | O14: -98565.94
A15: 3500 | B15: 10043 | C15: Annunciation RC Infant School | D15: =[50]AnnI!$H$65 -> 175894.23 | E15: =VLOOKUP(B15,[51]EOY!$A$3:$F$99,4,0) -> 122676.4 | F15: 0 | G15: 53217.83 | I15: 0 | J15: =VLOOKUP(B15,[51]EOY!$A$3:$F$99,6,0) -> 0 | K15: 0 | M15: 175894.23 | N15: 122676.4 | O15: 53217.83
A16: 3514 | B16: 10117 | C16: Annunciation RC Junior School | D16: =[50]AnnJ!$H$70 -> 103114.32 | E16: =VLOOKUP(B16,[51]EOY!$A$3:$F$99,4,0) -> 60712.28 | F16: 0 | G16: 42402.04 | I16: 0 | J16: =VLOOKUP(B16,[51]EOY!$A$3:$F$99,6,0) -> 0 | K16: 0 | M16: 103114.32 | N16: 60712.28 | O16: 42402.04
A17: 2002 | B17: 10044 | C17: Barnfield School | D17: =[50]Barnf!$H$75 -> 411190.28 | E17: =VLOOKUP(B17,[51]EOY!$A$3:$F$99,4,0) -> 375651.24 | F17: 0 | G17: 35539.04 | I17: =[50]Barnf!$H$87 -> -1.09 | J17: =VLOOKUP(B17,[51]EOY!$A$3:$F$99,6,0) -> -1.07 | K17: -0.02 | M17: 411189.19 | N17: 375650.17 | O17: 35539.02
A18: 2079 | B18: 10128 | C18: Beis Yaakov | D18: =[50]BYaak!$H$70 -> 55568.34 | E18: =VLOOKUP(B18,[51]EOY!$A$3:$F$99,4,0) -> 15010.96 | F18: 0 | G18: 40557.38 | I18: 0 | J18: =VLOOKUP(B18,[51]EOY!$A$3:$F$99,6,0) -> 0 | K18: 0 | M18: 55568.34 | N18: 15010.96 | O18: 40557.38
A19: 3524 | B19: 11278 | C19: Beit Shvidler Jewish Primary | D19: =[50]BeitShv!$H$69 -> 72683.38 | E19: =VLOOKUP(B19,[51]EOY!$A$3:$F$99,4,0) -> 58611.57 | F19: 0 | G19: 14071.81 | I19: 0 | J19: 0 | K19: 0 | M19: 72683.38 | N19: 58611.57 | O19: 14071.81
A20: 2003 | B20: 10045 | C20: Bell Lane School | D20: =[50]Bell!$H$76 -> 100729.37 | E20: =VLOOKUP(B20,[51]EOY!$A$3:$F$99,4,0) -> 80741.78 | F20: 0 | G20: 19987.59 | I20: =[50]Bell!$H$89 -> 979.74 | J20: =VLOOKUP(B20,[51]EOY!$A$3:$F$99,6,0) -> 8826.48 | K20: -7846.74 | M20: 101709.11 | N20: 89568.26 | O20: 12140.85
A21: 3511 | B21: 10115 | C21: Blessed Dominic RC School | D21: =[50]BDom!$H$72 -> 214487.75 | E21: =VLOOKUP(B21,[51]EOY!$A$3:$F$99,4,0) -> 74706.87 | F21: 0 | G21: 139780.88 | I21: =[50]BDom!$H$78 -> 1 | J21: =VLOOKUP(B21,[51]EOY!$A$3:$F$99,6,0) -> 1 | K21: 0 | M21: 214488.75 | N21: 74707.87 | O21: 139780.88
A22: 2008 | B22: 10047 | C22: Brookland Infant School | D22: =[50]BrookI!$H$71 -> 118776.9 | E22: =VLOOKUP(B22,[51]EOY!$A$3:$F$99,4,0) -> 49818.02 | F22: 0 | G22: 68958.88 | I22: =[50]BrookI!$H$81 -> 9148 | J22: =VLOOKUP(B22,[51]EOY!$A$3:$F$99,6,0) -> 1423.94 | K22: 7724.06 | M22: 127924.9 | N22: 51241.96 | O22: 76682.94
A23: 2007 | B23: 10046 | C23: Brookland Junior School | D23: =[50]BrookJ!$H$73 -> 154040.27 | E23: =VLOOKUP(B23,[51]EOY!$A$3:$F$99,4,0) -> 181476.19 | F23: 0 | G23: -27435.92 | I23: =[50]BrookJ!$H$84 -> -0.05 | J23: =VLOOKUP(B23,[51]EOY!$A$3:$F$99,6,0) -> 912 | K23: -912.05 | M23: 154040.22 | N23: 182388.19 | O23: -28347.97
A24: 2009 | B24: 10048 | C24: Brunswick Park School | D24: =[50]BrunsP!$H$72 -> 265273.83 | E24: =VLOOKUP(B24,[51]EOY!$A$3:$F$99,4,0) -> 119745.33 | F24: 0 | G24: 145528.5 | I24: =[50]BrunsP!$H$85 -> 1546.3 | J24: =VLOOKUP(B24,[51]EOY!$A$3:$F$99,6,0) -> 0 | K24: 1546.3 | M24: 266820.13 | N24: 119745.33 | O24: 147074.8
A25: 2067 | B25: 10118 | C25: Chalgrove School | D25: =[50]Chal!$H$72 -> 113348.11 | E25: =VLOOKUP(B25,[51]EOY!$A$3:$F$99,4,0) -> 126744.1 | F25: 0 | G25: -13395.99 | I25: =[50]Chal!$H$83 -> 6956.75 | J25: =VLOOKUP(B25,[51]EOY!$A$3:$F$99,6,0) -> -1.5 | K25: 6958.25 | M25: 120304.86 | N25: 126742.6 | O25: -6437.74
A26: 2010 | B26: 10049 | C26: Childs Hill School | D26: =[50]ChildsH!$H$73 -> 6740.54 | E26: =VLOOKUP(B26,[51]EOY!$A$3:$F$99,4,0) -> 39642.4 | F26: 0 | G26: -32901.86 | I26: =[50]ChildsH!$H$84 -> 0 | J26: =VLOOKUP(B26,[51]EOY!$A$3:$F$99,6,0) -> 0 | K26: 0 | M26: 6740.54 | N26: 39642.4 | O26: -32901.86
A27: 3302 | B27: 10050 | C27: Christ Church CE School | D27: =[50]ChristC!$H$69 -> 262448.06 | E27: =VLOOKUP(B27,[51]EOY!$A$3:$F$99,4,0) -> 175744.1 | F27: 0 | G27: 86703.96 | J27: =VLOOKUP(B27,[51]EOY!$A$3:$F$99,6,0) -> 0 | K27: 0 | M27: 262448.06 | N27: 175744.1 | O27: 86703.96
A28: 2011 | B28: 10051 | C28: Church Hill School | D28: =[50]ChurchH!$H$70 -> 71783.81 | E28: =VLOOKUP(B28,[51]EOY!$A$3:$F$99,4,0) -> 89142.43 | F28: 0 | G28: -17358.62 | I28: =[50]ChurchH!$H$81 -> -0.25 | J28: =VLOOKUP(B28,[51]EOY!$A$3:$F$99,6,0) -> 161.5 | K28: -161.75 | M28: 71783.56 | N28: 89303.93 | O28: -17520.37
A29: 3522 | B29: 10953 | C29: Claremont Primary | E29: 0 | F29: 0 | G29: 0 | J29: 0 | K29: 0 | M29: 0 | N29: 0 | O29: 0
A30: 2014 | B30: 10054 | C30: Colindale School | D30: =[50]Colin!$H$72 -> 500697.82 | E30: =VLOOKUP(B30,[51]EOY!$A$3:$F$99,4,0) -> 691029.48 | F30: 0 | G30: -190331.66 | I30: =[50]Colin!$H$85 -> 0 | J30: =VLOOKUP(B30,[51]EOY!$A$3:$F$99,6,0) -> 0 | K30: 0 | M30: 500697.82 | N30: 691029.48 | O30: -190331.66
A31: 2015 | B31: 10055 | C31: Coppetts Wood School | D31: =[50]Coppet!$H$76 -> 445664.48 | E31: =VLOOKUP(B31,[51]EOY!$A$3:$F$99,4,0) -> 416463.8 | F31: 0 | G31: 29200.68 | I31: =[50]Coppet!$H$87 -> 14118 | J31: =VLOOKUP(B31,[51]EOY!$A$3:$F$99,6,0) -> 7066.75 | K31: 7051.25 | M31: 459782.48 | N31: 423530.55 | O31: 36251.93
A32: 2016 | B32: 10056 | C32: Courtland School | D32: =[50]Court!$H$74 -> 92609.3 | E32: =VLOOKUP(B32,[51]EOY!$A$3:$F$99,4,0) -> 12493.33 | F32: 0 | G32: 80115.97 | I32: =[50]Court!$H$86 -> 0.66 | J32: =VLOOKUP(B32,[51]EOY!$A$3:$F$99,6,0) -> 11092.19 | K32: -11091.53 | M32: 92609.96 | N32: 23585.52 | O32: 69024.44
A33: 2017 | B33: 10057 | C33: Cromer Road School | D33: =[50]Cromer!$H$71 -> 173552.5 | E33: =VLOOKUP(B33,[51]EOY!$A$3:$F$99,4,0) -> 137978.37 | F33: 0 | G33: 35574.13 | I33: =[50]Cromer!$H$82 -> 14872.5 | J33: =VLOOKUP(B33,[51]EOY!$A$3:$F$99,6,0) -> 14715.2 | K33: 157.3 | M33: 188425 | N33: 152693.57 | O33: 35731.43
A34: 2073 | B34: 10083 | C34: Danegrove School | D34: =[50]Daneg!$H$72 -> 351920.21 | E34: =VLOOKUP(B34,[51]EOY!$A$3:$F$99,4,0) -> 461078.79 | F34: 0 | G34: -109158.58 | I34: =[50]Daneg!$H$82 -> 647.25 | J34: =VLOOKUP(B34,[51]EOY!$A$3:$F$99,6,0) -> -0.25 | K34: 647.5 | M34: 352567.46 | N34: 461078.54 | O34: -108511.08
A35: 2019 | B35: 10059 | C35: Deansbrook Infant School | D35: =[50]DeansI!$H$70 -> 116843.48 | E35: =VLOOKUP(B35,[51]EOY!$A$3:$F$99,4,0) -> 36222.56 | F35: 0 | G35: 80620.92 | I35: =[50]DeansI!$H$81 -> 13770 | J35: =VLOOKUP(B35,[51]EOY!$A$3:$F$99,6,0) -> 15618.25 | K35: -1848.25 | M35: 130613.48 | N35: 51840.81 | O35: 78772.67
A36: 2021 | B36: 10061 | C36: Dollis Infant School | D36: =[50]DollisI!$H$72 -> 184963.85 | E36: =VLOOKUP(B36,[51]EOY!$A$3:$F$99,4,0) -> 84238.55 | F36: 0 | G36: 100725.3 | I36: =[50]DollisI!$H$82 -> 14581.35 | J36: =VLOOKUP(B36,[51]EOY!$A$3:$F$99,6,0) -> 16523.97 | K36: -1942.62 | M36: 199545.2 | N36: 100762.52 | O36: 98782.68
A37: 5200 | B37: 10060 | C37: Dollis Junior School | D37: =[50]DollisJ!$H$70 -> 61398.24 | E37: =VLOOKUP(B37,[51]EOY!$A$3:$F$99,4,0) -> 32911.35 | F37: 0 | G37: 28486.89 | I37: =[50]DollisJ!$H$81 -> 6403.5 | J37: =VLOOKUP(B37,[51]EOY!$A$3:$F$99,6,0) -> 5264 | K37: 1139.5 | M37: 67801.74 | N37: 38175.35 | O37: 29626.39
A38: 2023 | B38: 10063 | C38: Edgware Primary | D38: =[50]EdgwP!$H$72 -> 56561.46 | E38: =VLOOKUP(B38,[51]EOY!$A$3:$F$99,4,0) -> 16604.28 | F38: 0 | G38: 39957.18 | I38: =[50]EdgwP!$H$85 -> 0.37 | J38: =VLOOKUP(B38,[51]EOY!$A$3:$F$99,6,0) -> 641.6 | K38: -641.23 | M38: 56561.83 | N38: 17245.88 | O38: 39315.95
A39: 2024 | B39: 10064 | C39: Fairway School | D39: =[50]Fair!$H$75 -> 167149.75 | E39: =VLOOKUP(B39,[51]EOY!$A$3:$F$99,4,0) -> 170460.72 | F39: 0 | G39: -3310.97 | I39: =[50]Fair!$H$86 -> 21468.89 | J39: =VLOOKUP(B39,[51]EOY!$A$3:$F$99,6,0) -> 39959.07 | K39: -18490.18 | M39: 188618.64 | N39: 210419.79 | O39: -21801.15
A40: 2025 | B40: 10065 | C40: Foulds School | D40: =[50]Fould!$H$72 -> 171440.37 | E40: =VLOOKUP(B40,[51]EOY!$A$3:$F$99,4,0) -> 96651.58 | F40: 0 | G40: 74788.79 | I40: =[50]Fould!$H$85 -> 10533.75 | J40: =VLOOKUP(B40,[51]EOY!$A$3:$F$99,6,0) -> 9042.85 | K40: 1490.9 | M40: 181974.12 | N40: 105694.43 | O40: 76279.69
A41: 2026 | B41: 10066 | C41: Frith Manor School | D41: =[50]Frith!$H$69 -> -2176.66 | E41: =VLOOKUP(B41,[51]EOY!$A$3:$F$99,4,0) -> 1968.95 | F41: 0 | G41: -4145.61 | I41: =[50]Frith!$H$81 -> 21611.31 | J41: =VLOOKUP(B41,[51]EOY!$A$3:$F$99,6,0) -> 10303.18 | K41: 11308.13 | M41: 19434.65 | N41: 12272.13 | O41: 7162.52
A42: 2028 | B42: 10068 | C42: Garden Suburb Infant School | D42: =[50]GSubI!$H$71 -> 31127.15 | E42: =VLOOKUP(B42,[51]EOY!$A$3:$F$99,4,0) -> 54373.43 | F42: 0 | G42: -23246.28 | I42: =[50]GSubI!$H$83 -> 17070.75 | J42: =VLOOKUP(B42,[51]EOY!$A$3:$F$99,6,0) -> 11223 | K42: 5847.75 | M42: 48197.9 | N42: 65596.43 | O42: -17398.53
A43: 2027 | B43: 10067 | C43: Garden Suburb Junior School | D43: =[50]GSubJ!$H$72 -> 139042.54 | E43: =VLOOKUP(B43,[51]EOY!$A$3:$F$99,4,0) -> 105199.21 | F43: 0 | G43: 33843.33 | I43: =[50]GSubJ!$H$84 -> 10119.25 | J43: =VLOOKUP(B43,[51]EOY!$A$3:$F$99,6,0) -> 3259.23 | K43: 6860.02 | M43: 149161.79 | N43: 108458.44 | O43: 40703.35
A44: 2029 | B44: 10069 | C44: Goldbeaters School | D44: =[50]Gold!$H$72 -> 59289.67 | E44: =VLOOKUP(B44,[51]EOY!$A$3:$F$99,4,0) -> -10195.16 | F44: 0 | G44: 69484.83 | I44: =[50]Gold!$H$84 -> 8467.05 | J44: =VLOOKUP(B44,[51]EOY!$A$3:$F$99,6,0) -> 8969.25 | K44: -502.2 | M44: 67756.72 | N44: -1225.91 | O44: 68982.63
A45: 3516 | B45: 10121 | C45: Hasmonean Primary School | D45: =[50]HasmoP!$H$70 -> -21033.83 | E45: =VLOOKUP(B45,[51]EOY!$A$3:$F$99,4,0) -> -1986.03 | F45: 0 | G45: -19047.8 | I45: 0 | J45: =IFERROR(VLOOKUP(B45,[51]EOY!$A$3:$F$99,6,0),0) -> 0 | K45: 0 | M45: -21033.83 | N45: -1986.03 | O45: -19047.8
A46: 2031 | B46: 10071 | C46: Hollickwood School | D46: =[50]Hollick!$H$71 -> 111210.9 | E46: =VLOOKUP(B46,[51]EOY!$A$3:$F$99,4,0) -> 156272.67 | F46: 0 | G46: -45061.77 | I46: =[50]Hollick!$H$82 -> 14316.75 | J46: =VLOOKUP(B46,[51]EOY!$A$3:$F$99,6,0) -> 7817.05 | K46: 6499.7 | M46: 125527.65 | N46: 164089.72 | O46: -38562.07
A47: 2032 | B47: 10072 | C47: Holly Park School | D47: =[50]HollyP!$H$70 -> 158878.42 | E47: =VLOOKUP(B47,[51]EOY!$A$3:$F$99,4,0) -> 74560.37 | F47: 0 | G47: 84318.05 | I47: =[50]HollyP!$H$80 -> 13 | J47: =VLOOKUP(B47,[51]EOY!$A$3:$F$99,6,0) -> -0.5 | K47: 13.5 | M47: 158891.42 | N47: 74559.87 | O47: 84331.55
A48: 3304 | B48: 10073 | C48: Holy Trinity CE School | D48: =[50]Holy!$H$71 -> 132956.74 | E48: =VLOOKUP(B48,[51]EOY!$A$3:$F$99,4,0) -> 126491.16 | F48: 0 | G48: 6465.58 | I48: =[50]Holy!$H$81 -> -1 | J48: =VLOOKUP(B48,[51]EOY!$A$3:$F$99,6,0) -> -1 | K48: 0 | M48: 132955.74 | N48: 126490.16 | O48: 6465.58
A49: 2036 | B49: 10074 | C49: Livingstone School | D49: =[50]Living!$H$70 -> 528877.25 | E49: =VLOOKUP(B49,[51]EOY!$A$3:$F$99,4,0) -> 452448.91 | F49: 0 | G49: 76428.34 | I49: =[50]Living!$H$81 -> 3.492459655e-12 | J49: =VLOOKUP(B49,[51]EOY!$A$3:$F$99,6,0) -> 0 | K49: 3.492459655e-12 | M49: 528877.25 | N49: 452448.91 | O49: 76428.34
A50: 2037 | B50: 10075 | C50: Manorside School | D50: =[50]Manor!$H$72 -> -10522.6 | E50: =VLOOKUP(B50,[51]EOY!$A$3:$F$99,4,0) -> 13575.99 | F50: 0 | G50: -24098.59 | I50: =[50]Manor!$H$83 -> 15413.75 | J50: =VLOOKUP(B50,[51]EOY!$A$3:$F$99,6,0) -> 7717 | K50: 7696.75 | M50: 4891.15 | N50: 21292.99 | O50: -16401.84
A51: 3523 | B51: 11093 | C51: Martin Primary | D51: =[50]Martin!$H$72 -> 309495.92 | E51: =VLOOKUP(B51,[51]EOY!$A$3:$F$99,4,0) -> 178533.05 | F51: 0 | G51: 130962.87 | I51: =[50]Martin!$H$85 -> 9203.49 | J51: =VLOOKUP(B51,[51]EOY!$A$3:$F$99,6,0) -> 4214.38 | K51: 4989.11 | M51: 318699.41 | N51: 182747.43 | O51: 135951.98
A52: 5948 | B52: 10125 | C52: Mathilda Marks Kennedy School | D52: =[50]MMK!$H$72 -> 29057.67 | E52: =VLOOKUP(B52,[51]EOY!$A$3:$F$99,4,0) -> 24291.07 | F52: 0 | G52: 4766.6 | I52: 0 | J52: =IFERROR(VLOOKUP(B52,[51]EOY!$A$3:$F$99,6,0),0) -> 0 | K52: 0 | M52: 29057.67 | N52: 24291.07 | O52: 4766.6
A53: 5949 | B53: 10126 | C53: Menorah Foundation School | D53: =[50]MenF!$H$73 -> -31959.81 | E53: =VLOOKUP(B53,[51]EOY!$A$3:$F$99,4,0) -> 64642.85 | F53: 0 | G53: -96602.66 | I53: 0 | J53: =IFERROR(VLOOKUP(B53,[51]EOY!$A$3:$F$99,6,0),0) -> 0 | K53: 0 | M53: -31959.81 | N53: 64642.85 | O53: -96602.66
A54: 3513 | B54: 10114 | C54: Menorah Primary School | D54: =[50]MenP!$H$69 -> 53322.3 | E54: =VLOOKUP(B54,[51]EOY!$A$3:$F$99,4,0) -> -1759.57 | F54: 0 | G54: 55081.87 | I54: =[50]MenP!$H$79 -> -0.5 | J54: =VLOOKUP(B54,[51]EOY!$A$3:$F$99,6,0) -> 0.4 | K54: -0.9 | M54: 53321.8 | N54: -1759.17 | O54: 55080.97
A55: 3305 | B55: 10078 | C55: Monken Hadley CE School | D55: =[50]Monken!$H$72 -> 180209.7 | E55: =VLOOKUP(B55,[51]EOY!$A$3:$F$99,4,0) -> 163465.47 | F55: 0 | G55: 16744.23 | J55: =VLOOKUP(B55,[51]EOY!$A$3:$F$99,6,0) -> 0 | K55: 0 | M55: 180209.7 | N55: 163465.47 | O55: 16744.23
A56: 2042 | B56: 10079 | C56: Monkfrith School | D56: =[50]MonkF!$H$69 -> 80105.96 | E56: =VLOOKUP(B56,[51]EOY!$A$3:$F$99,4,0) -> 122305.27 | F56: 0 | G56: -42199.31 | I56: =[50]MonkF!$H$81 -> 0 | J56: =VLOOKUP(B56,[51]EOY!$A$3:$F$99,6,0) -> 0.44 | K56: -0.44 | M56: 80105.96 | N56: 122305.71 | O56: -42199.75
A57: 2044 | B57: 10081 | C57: Moss Hall Infant School | D57: =[50]MHI!$H$73 -> 69525.54 | E57: =VLOOKUP(B57,[51]EOY!$A$3:$F$99,4,0) -> 72560.58 | F57: 0 | G57: -3035.04 | I57: =[50]MHI!$H$83 -> 8083.75 | J57: =VLOOKUP(B57,[51]EOY!$A$3:$F$99,6,0) -> 0.25 | K57: 8083.5 | M57: 77609.29 | N57: 72560.83 | O57: 5048.46
A58: 2043 | B58: 10080 | C58: Moss Hall Junior School | D58: =[50]MHJ!$H$73 -> 192321.01 | E58: =VLOOKUP(B58,[51]EOY!$A$3:$F$99,4,0) -> 208724.8 | F58: 0 | G58: -16403.79 | I58: =[50]MHJ!$H$86 -> 0.43 | J58: =VLOOKUP(B58,[51]EOY!$A$3:$F$99,6,0) -> 8331.25 | K58: -8330.82 | M58: 192321.44 | N58: 217056.05 | O58: -24734.61
A59: 2045 | B59: 10082 | C59: Northside School | D59: =[50]Norths!$H$72 -> 242852.44 | E59: =VLOOKUP(B59,[51]EOY!$A$3:$F$99,4,0) -> 399998.71 | F59: 0 | G59: -157146.27 | I59: =[50]Norths!$H$85 -> 0.23 | J59: =VLOOKUP(B59,[51]EOY!$A$3:$F$99,6,0) -> 13508.96 | K59: -13508.73 | M59: 242852.67 | N59: 413507.67 | O59: -170655
A60: 2077 | B60: 10127 | C60: Orion School | D60: =[50]Orion!$H$73 -> 221791.84 | E60: =VLOOKUP(B60,[51]EOY!$A$3:$F$99,4,0) -> 120926.72 | F60: 0 | G60: 100865.12 | I60: =[50]Orion!$H$85 -> -0.3 | J60: =VLOOKUP(B60,[51]EOY!$A$3:$F$99,6,0) -> -14020.25 | K60: 14019.95 | M60: 221791.54 | N60: 106906.47 | O60: 114885.07
A61: 5201 | B61: 10084 | C61: Osidge School | D61: =[50]Osidge!$H$72 -> 248450.94 | E61: =VLOOKUP(B61,[51]EOY!$A$3:$F$99,4,0) -> 188193.18 | F61: 0 | G61: 60257.76 | I61: =[50]Osidge!$H$83 -> 0.5 | J61: =VLOOKUP(B61,[51]EOY!$A$3:$F$99,6,0) -> 0.25 | K61: 0.25 | M61: 248451.44 | N61: 188193.43 | O61: 60258.01
A62: 3501 | B62: 10085 | C62: Our Lady of Lourdes RC School | D62: =[50]OLOL!$H$70 -> 21391.12 | E62: =VLOOKUP(B62,[51]EOY!$A$3:$F$99,4,0) -> 61777.65 | F62: 0 | G62: -40386.53 | I62: =[50]OLOL!$H$76 -> 1 | J62: =VLOOKUP(B62,[51]EOY!$A$3:$F$99,6,0) -> 1 | K62: 0 | M62: 21392.12 | N62: 61778.65 | O62: -40386.53
A63: 2078 | B63: 10129 | C63: Pardes House School | D63: =[50]Pardes!$H$68 -> 17532.32 | E63: =VLOOKUP(B63,[51]EOY!$A$3:$F$99,4,0) -> 51517.46 | F63: 0 | G63: -33985.14 | I63: 0 | J63: =IFERROR(VLOOKUP(B63,[51]EOY!$A$3:$F$99,6,0),0) -> 0 | K63: 0 | M63: 17532.32 | N63: 51517.46 | O63: -33985.14
A64: 2071 | B64: 10119 | C64: Queenswell Infant School | D64: =[50]QueenI!$H$71 -> 79254.12 | E64: =VLOOKUP(B64,[51]EOY!$A$3:$F$99,4,0) -> 18395.93 | F64: 0 | G64: 60858.19 | I64: =[50]QueenI!$H$82 -> 15090.75 | J64: =VLOOKUP(B64,[51]EOY!$A$3:$F$99,6,0) -> 7691 | K64: 7399.75 | M64: 94344.87 | N64: 26086.93 | O64: 68257.94
A65: 2072 | B65: 10086 | C65: Queenswell Junior School | D65: =[50]QueenJ!$H$71 -> 134490 | E65: =VLOOKUP(B65,[51]EOY!$A$3:$F$99,4,0) -> 66539 | F65: 0 | G65: 67951 | I65: =[50]QueenJ!$H$82 -> 9697 | J65: =VLOOKUP(B65,[51]EOY!$A$3:$F$99,6,0) -> 1872.28 | K65: 7824.72 | M65: 144187 | N65: 68411.28 | O65: 75775.72
A66: 3512 | B66: 10112 | C66: Rosh Pinah School | D66: =[50]RoshP!$H$70 -> 129908.65 | E66: =VLOOKUP(B66,[51]EOY!$A$3:$F$99,4,0) -> 32369.78 | F66: 0 | G66: 97538.87 | I66: 0 | J66: =VLOOKUP(B66,[51]EOY!$A$3:$F$99,6,0) -> 0 | K66: 0 | M66: 129908.65 | N66: 32369.78 | O66: 97538.87
A67: 3510 | B67: 10110 | C67: Sacred Heart RC School | D67: =[50]Sacred!$H$71 -> 147828.54 | E67: =VLOOKUP(B67,[51]EOY!$A$3:$F$99,4,0) -> 144436.76 | F67: 0 | G67: 3391.78 | I67: 0 | J67: =VLOOKUP(B67,[51]EOY!$A$3:$F$99,6,0) -> 0 | K67: 0 | M67: 147828.54 | N67: 144436.76 | O67: 3391.78
A68: 2041 | B68: 11381 | C68: Sacks Morasha | D68: =[50]Morasha!$H$69 -> 87789.62 | E68: =VLOOKUP(B68,[51]EOY!$A$3:$F$99,4,0) -> 64165.84 | F68: 0 | G68: 23623.78 | I68: =[50]Morasha!$H$75 -> 1 | J68: =VLOOKUP(B68,[51]EOY!$A$3:$F$99,6,0) -> 1 | K68: 0 | M68: 87790.62 | N68: 64166.84 | O68: 23623.78
A69: 3502 | B69: 10087 | C69: St. Agnes' RC School | D69: =[50]StAgnes!$H$72 -> 407523.54 | E69: =VLOOKUP(B69,[51]EOY!$A$3:$F$99,4,0) -> 300440.3 | F69: 0 | G69: 107083.24 | I69: =[50]StAgnes!$H$78 -> 1 | J69: =VLOOKUP(B69,[51]EOY!$A$3:$F$99,6,0) -> 1 | K69: 0 | M69: 407524.54 | N69: 300441.3 | O69: 107083.24
A70: 3315 | B70: 10099 | C70: St. Andrew's CE School | D70: =[50]StAndrew!$H$68 -> 201563.22 | E70: =VLOOKUP(B70,[51]EOY!$A$3:$F$99,4,0) -> 172133.77 | F70: 0 | G70: 29429.45 | I70: =[50]StAndrew!$H$78 -> 0 | J70: =IFERROR(VLOOKUP(B70,[51]EOY!$A$3:$F$99,6,0),0) -> 0 | K70: 0 | M70: 201563.22 | N70: 172133.77 | O70: 29429.45
A71: 3504 | B71: 10088 | C71: St. Catherine's RC School | D71: =[50]StCath!$H$72 -> 247130.8 | E71: =VLOOKUP(B71,[51]EOY!$A$3:$F$99,4,0) -> 231122.71 | F71: 0 | G71: 16008.09 | I71: 0 | J71: =VLOOKUP(B71,[51]EOY!$A$3:$F$99,6,0) -> 0 | K71: 0 | M71: 247130.8 | N71: 231122.71 | O71: 16008.09
A72: 3307 | B72: 10089 | C72: St. John's CE School (N11) | D72: =[50]StJohnN11!$H$71 -> 81701.42 | E72: =VLOOKUP(B72,[51]EOY!$A$3:$F$99,4,0) -> 49400.71 | F72: 0 | G72: 32300.71 | I72: 0 | J72: =VLOOKUP(B72,[51]EOY!$A$3:$F$99,6,0) -> 0 | K72: 0 | M72: 81701.42 | N72: 49400.71 | O72: 32300.71
A73: 3309 | B73: 10116 | C73: St. John's CE School (N20) | D73: =[50]StJohnN20!$H$69 -> 69137.14 | E73: =VLOOKUP(B73,[51]EOY!$A$3:$F$99,4,0) -> 27280.65 | F73: 0 | G73: 41856.49 | I73: 0 | J73: =VLOOKUP(B73,[51]EOY!$A$3:$F$99,6,0) -> 0 | K73: 0 | M73: 69137.14 | N73: 27280.65 | O73: 41856.49
A74: 3509 | B74: 10107 | C74: St. Joseph's RC Primary | D74: =[50]StJosJ!$H$70 -> -122777.46 | E74: =VLOOKUP(B74,[51]EOY!$A$3:$F$99,4,0) -> -101168.42 | F74: 0 | G74: -21609.04 | I74: 0 | J74: =VLOOKUP(B74,[51]EOY!$A$3:$F$99,6,0) -> 0 | K74: 0 | M74: -122777.46 | N74: -101168.42 | O74: -21609.04
A75: 3521 | B75: 10698 | C75: St. Mary's & St. Johns Primary | D75: =[50]StMarStJon!$H$70 -> 309311.54 | E75: =VLOOKUP(B75,[51]EOY!$A$3:$F$99,4,0) -> 370562.22 | F75: 0 | G75: -61250.68 | I75: =[50]StMarStJon!$H$80 -> 0 | J75: =VLOOKUP(B75,[51]EOY!$A$3:$F$99,6,0) -> 2371.77 | K75: -2371.77 | M75: 309311.54 | N75: 372933.99 | O75: -63622.45
A76: 3312 | B76: 10093 | C76: St. Mary's CE School (EN4) | D76: =[50]StMarEN4!$H$70 -> 139925.72 | E76: =VLOOKUP(B76,[51]EOY!$A$3:$F$99,4,0) -> 62592.8 | F76: 0 | G76: =D76-E76 -> 77332.92 | J76: =VLOOKUP(B76,[51]EOY!$A$3:$F$99,6,0) -> 0 | K76: =I76-J76 -> 0 | M76: =D76+I76 -> 139925.72 | N76: 62592.8 | O76: =M76-N76 -> 77332.92
A77: 3311 | B77: 10092 | C77: St. Mary's CE School (N3) | D77: =[50]StMarN3!$H$69 -> 104321.73 | E77: =VLOOKUP(B77,[51]EOY!$A$3:$F$99,4,0) -> 78078.32 | F77: 0 | G77: 26243.41 | J77: =VLOOKUP(B77,[51]EOY!$A$3:$F$99,6,0) -> 0 | K77: 0 | M77: 104321.73 | N77: 78078.32 | O77: 26243.41
A78: 3313 | B78: 10094 | C78: St. Paul's CE School (N11) | D78: =[50]StPaulN11!$H$71 -> 61679.57 | E78: =VLOOKUP(B78,[51]EOY!$A$3:$F$99,4,0) -> 253746.14 | F78: 0 | G78: -192066.57 | I78: =[50]StPaulN11!$H$81 -> 0 | J78: =VLOOKUP(B78,[51]EOY!$A$3:$F$99,6,0) -> 0 | K78: 0 | M78: 61679.57 | N78: 253746.14 | O78: -192066.57
A79: 3314 | B79: 10095 | C79: St. Paul's CE School (NW7) | D79: =[50]StPaulNW7!$H$70 -> 22193.69 | E79: =VLOOKUP(B79,[51]EOY!$A$3:$F$99,4,0) -> 23741.94 | F79: 0 | G79: -1548.25 | I79: 0 | J79: =VLOOKUP(B79,[51]EOY!$A$3:$F$99,6,0) -> 0 | K79: 0 | M79: 22193.69 | N79: 23741.94 | O79: -1548.25
A80: 3507 | B80: 10108 | C80: St. Theresa's RC School | D80: =[50]StThere!$H$70 -> 95043.09 | E80: =VLOOKUP(B80,[51]EOY!$A$3:$F$99,4,0) -> 23559.1 | F80: 0 | G80: 71483.99 | I80: 0 | J80: =VLOOKUP(B80,[51]EOY!$A$3:$F$99,6,0) -> 0 | K80: 0 | M80: 95043.09 | N80: 23559.1 | O80: 71483.99
A81: 3506 | B81: 10096 | C81: St. Vincent's RC School | D81: =[50]StVin!$H$70 -> 69001.74 | E81: =VLOOKUP(B81,[51]EOY!$A$3:$F$99,4,0) -> 115609.13 | F81: 0 | G81: -46607.39 | I81: =[50]StVin!$H$81 -> -1 | J81: =VLOOKUP(B81,[51]EOY!$A$3:$F$99,6,0) -> -1 | K81: 2.328359727e-12 | M81: 69000.74 | N81: 115608.13 | O81: -46607.39
A82: 2052 | B82: 10098 | C82: Summerside School | D82: =[50]Summer!$H$78 -> -0.2 | E82: =VLOOKUP(B82,[51]EOY!$A$3:$F$99,4,0) -> 100079.32 | F82: 0 | G82: -100079.52 | I82: =[50]Summer!$H$89 -> 0 | J82: =VLOOKUP(B82,[51]EOY!$A$3:$F$99,6,0) -> 2374.24 | K82: -2374.24 | M82: -0.2 | N82: 102453.56 | O82: -102453.76
A83: 2070 | B83: 10097 | C83: Sunnyfields School | D83: =[50]Sunny!$H$73 -> 229601.44 | E83: =VLOOKUP(B83,[51]EOY!$A$3:$F$99,4,0) -> 143408.13 | F83: 0 | G83: 86193.31 | I83: =[50]Sunny!$H$86 -> -0.25 | J83: =VLOOKUP(B83,[51]EOY!$A$3:$F$99,6,0) -> 6674 | K83: -6674.25 | M83: 229601.19 | N83: 150082.13 | O83: 79519.06
A84: 3316 | B84: 10100 | C84: Trent CE School | D84: =[50]Trent!$H$72 -> 25795.14 | E84: =VLOOKUP(B84,[51]EOY!$A$3:$F$99,4,0) -> 13208.27 | F84: 0 | G84: 12586.87 | I84: 0 | J84: =VLOOKUP(B84,[51]EOY!$A$3:$F$99,6,0) -> 0 | K84: 0 | M84: 25795.14 | N84: 13208.27 | O84: 12586.87
A85: 2055 | B85: 10101 | C85: Tudor School | D85: =[50]Tudor!$H$71 -> -87918.54 | E85: =VLOOKUP(B85,[51]EOY!$A$3:$F$99,4,0) -> -48708.08 | F85: 0 | G85: -39210.46 | I85: =[50]Tudor!$H$81 -> 8084 | J85: =VLOOKUP(B85,[51]EOY!$A$3:$F$99,6,0) -> 1483.29 | K85: 6600.71 | M85: -79834.54 | N85: -47224.79 | O85: -32609.75
A86: 2057 | B86: 10103 | C86: Underhill School | D86: =[50]UnderP!$H$75 -> 253321.96 | E86: =VLOOKUP(B86,[51]EOY!$A$3:$F$99,4,0) -> 184595.15 | F86: 0 | G86: 68726.81 | I86: =[50]UnderP!$H$88 -> 343.7 | J86: =VLOOKUP(B86,[51]EOY!$A$3:$F$99,6,0) -> 0.34 | K86: 343.36 | M86: 253665.66 | N86: 184595.49 | O86: 69070.17
A87: 2076 | B87: 10124 | C87: Wessex Gardens School | D87: =[50]Wessex!$H$74 -> 177511.5 | E87: =VLOOKUP(B87,[51]EOY!$A$3:$F$99,4,0) -> 192232.31 | F87: 0 | G87: -14720.81 | I87: =[50]Wessex!$H$86 -> 18756.13 | J87: =VLOOKUP(B87,[51]EOY!$A$3:$F$99,6,0) -> 16066 | K87: 2690.13 | M87: 196267.63 | N87: 208298.31 | O87: -12030.68
A88: 2060 | B88: 10105 | C88: Whitings Hill School | D88: =[50]Whiting!$H$71 -> 253134.39 | E88: =VLOOKUP(B88,[51]EOY!$A$3:$F$99,4,0) -> 141636.05 | F88: 0 | G88: 111498.34 | I88: =[50]Whiting!$H$83 -> 7349.5 | J88: =VLOOKUP(B88,[51]EOY!$A$3:$F$99,6,0) -> -1669.75 | K88: 9019.25 | M88: 260483.89 | N88: 139966.3 | O88: 120517.59
A89: 3518 | B89: 10123 | C89: Woodcroft Primary | D89: =[50]Woodcrft!$H$73 -> 100906.23 | E89: =VLOOKUP(B89,[51]EOY!$A$3:$F$99,4,0) -> 97408.86 | F89: 0 | G89: 3497.37 | I89: =[50]Woodcrft!$H$84 -> 0.5 | J89: =VLOOKUP(B89,[51]EOY!$A$3:$F$99,6,0) -> 2919.21 | K89: -2918.71 | M89: 100906.73 | N89: 100328.07 | O89: 578.66
A90: 2054 | B90: 10109 | C90: Woodridge School | D90: =[50]Woodrdge!$H$71 -> 29921.24 | E90: =VLOOKUP(B90,[51]EOY!$A$3:$F$99,4,0) -> 70041.06 | F90: 0 | G90: -40119.82 | I90: =[50]Woodrdge!$H$84 -> 11446.75 | J90: =VLOOKUP(B90,[51]EOY!$A$3:$F$99,6,0) -> 4757.5 | K90: 6689.25 | M90: 41367.99 | N90: 74798.56 | O90: -33430.57
M91: 0
C92: Sub Total - Primary Sector | D92: =SUM(D12:D90) -> 10725312.7 | E92: =SUM(E12:E90) -> 9503963.09 | F92: 0 | G92: 1221349.61 | H92: 0 | I92: 290095.21 | J92: 237110.75 | K92: 52984.46 | L92: 0 | M92: 11015407.91 | N92: 9741073.84 | O92: 1274334.07
M93: 0
A94: 5408 | B94: 10137 | C94: Bishop Douglass RC High | D94: =VLOOKUP(B94,[52]check!$B$6:$X$101,20,0) -> 0 | E94: =VLOOKUP(B94,[51]EOY!$A$3:$F$99,4,0) -> -0.1 | F94: 0 | G94: =D94-E94 -> 0.1 | J94: =VLOOKUP(B94,[51]EOY!$A$3:$F$99,6,0) -> 0 | K94: =I94-J94 -> 0 | M94: 0 | N94: -0.1 | O94: =M94-N94 -> 0.1
A95: 5405 | B95: 10145 | C95: Finchley Catholic High School | D95: =[50]FinchleyC!$H$73 -> 543829.36 | E95: =VLOOKUP(B95,[51]EOY!$A$3:$F$99,4,0) -> 514620.15 | F95: 0 | G95: 29209.21 | I95: =[50]FinchleyC!$H$79 -> 1 | J95: =VLOOKUP(B95,[51]EOY!$A$3:$F$99,6,0) -> 0.82 | K95: 0.18 | M95: 543830.36 | N95: 514620.97 | O95: 29209.39
A96: 4003 | B96: 10139 | C96: Friern Barnet School | D96: =[50]FBarnet!$H$69 -> 174783.78 | E96: =VLOOKUP(B96,[51]EOY!$A$3:$F$99,4,0) -> 220868.72 | F96: 0 | G96: -46084.94 | I96: =[50]FBarnet!$H$80 -> 25216.71 | J96: =VLOOKUP(B96,[51]EOY!$A$3:$F$99,6,0) -> 29130.79 | K96: -3914.08 | M96: 200000.49 | N96: 249999.51 | O96: -49999.02
A97: 5427 | B97: 11174 | C97: JCoSS | D97: =[50]JCoSS!$H$72 -> 89342.74 | E97: =VLOOKUP(B97,[51]EOY!$A$3:$F$99,4,0) -> -1427.17 | F97: 0 | G97: 90769.91 | I97: 0 | J97: =IFERROR(VLOOKUP(B97,[51]EOY!$A$3:$F$99,6,0),0) -> 0 | K97: 0 | M97: 89342.74 | N97: -1427.17 | O97: 90769.91
B98: 11513 | C98: Menorah High | D98: ='[50]MenorahHigh '!$H$69 -> 37247.42 | E98: =VLOOKUP(B98,[51]EOY!$A$3:$F$99,4,0) -> 30055.44 | G98: 7191.98 | I98: 0 | J98: =IFERROR(VLOOKUP(B98,[51]EOY!$A$3:$F$99,6,0),0) -> 0 | K98: 0 | M98: 37247.42 | N98: 30055.44 | O98: 7191.98
A99: 5407 | B99: 10142 | C99: St James' Catholic High School | D99: =[50]StJames!$H$71 -> -333259.72 | E99: =VLOOKUP(B99,[51]EOY!$A$3:$F$99,4,0) -> 124247.52 | F99: 0 | G99: -457507.24 | I99: 0 | J99: =IFERROR(VLOOKUP(B99,[51]EOY!$A$3:$F$99,6,0),0) -> 0 | K99: 0 | M99: -333259.72 | N99: 124247.52 | O99: -457507.24
A100: 5403 | B100: 10143 | C100: St Mary's CE High | E100: =VLOOKUP(B100,[51]EOY!$A$3:$F$99,4,0) -> 6181.68 | F100: 0 | G100: -6181.68 | J100: =IFERROR(VLOOKUP(B100,[51]EOY!$A$3:$F$99,6,0),0) -> 0 | K100: 0 | M100: 0 | N100: 6181.68 | O100: -6181.68
A101: 5404 | B101: 10148 | C101: St. Michael's Catholic Gram'r Sch. | D101: =[50]StMichael!$H$73 -> -359987.74 | E101: =VLOOKUP(B101,[51]EOY!$A$3:$F$99,4,0) -> -98516.75 | F101: 0 | G101: -261470.99 | I101: =[50]StMichael!$H$79 -> 4443 | J101: =VLOOKUP(B101,[51]EOY!$A$3:$F$99,6,0) -> 4443 | K101: 0 | M101: -355544.74 | N101: -94073.75 | O101: -261470.99
D102: 0 | M102: 0
C103: Sub Total - Secondary Sector | D103: =SUM(D94:D102) -> 151955.84 | E103: =SUM(E94:E102) -> 796029.49 | F103: 0 | G103: -644073.65 | H103: 0 | I103: 29660.71 | J103: 33574.61 | K103: -3913.9 | L103: 0 | M103: 181616.55 | N103: 829604.1 | O103: -647987.55
M104: 0
A105: 7010 | B105: 10159 | C105: Mapledown School | D105: =[50]Mpldwn!$H$70 -> 149681.7 | E105: =VLOOKUP(B105,[51]EOY!$A$3:$F$99,4,0) -> 77439.45 | F105: 0 | G105: =D105-E105 -> 72242.25 | I105: =[50]Mpldwn!$H$83 -> 0.25 | J105: =VLOOKUP(B105,[51]EOY!$A$3:$F$99,6,0) -> 6463.75 | K105: =I105-J105 -> -6463.5 | M105: 149681.95 | N105: =E105+J105 -> 83903.2 | O105: =M105-N105 -> 65778.75
A106: 7005 | B106: 10157 | C106: Northway School | D106: =[50]Nrthwy!$H$70 -> 185976.54 | E106: =VLOOKUP(B106,[51]EOY!$A$3:$F$99,4,0) -> 182559.21 | F106: 0 | G106: =D106-E106 -> 3417.33 | I106: =[50]Nrthwy!$H$82 -> 0.79 | J106: =VLOOKUP(B106,[51]EOY!$A$3:$F$99,6,0) -> -0.08 | K106: =I106-J106 -> 0.87 | M106: 185977.33 | N106: =E106+J106 -> 182559.13 | O106: =M106-N106 -> 3418.2
A107: 7000 | B107: 10156 | C107: Oak Lodge School | E107: =VLOOKUP(B107,[51]EOY!$A$3:$F$99,4,0) -> 163008.26 | F107: 0 | G107: =D107-E107 -> -163008.26 | J107: =VLOOKUP(B107,[51]EOY!$A$3:$F$99,6,0) -> 2579.31 | K107: =I107-J107 -> -2579.31 | M107: 0 | N107: =E107+J107 -> 165587.57 | O107: =M107-N107 -> -165587.57
A108: 7009 | B108: 10158 | C108: Oakleigh School | D108: =[50]Oklgh!$H$73 -> 214291.17 | E108: =VLOOKUP(B108,[51]EOY!$A$3:$F$99,4,0) -> 203251.04 | F108: 0 | G108: =D108-E108 -> 11040.13 | I108: =[50]Oklgh!$H$84 -> 0 | J108: =VLOOKUP(B108,[51]EOY!$A$3:$F$99,6,0) -> 1790.13 | K108: =I108-J108 -> -1790.13 | M108: 214291.17 | N108: =E108+J108 -> 205041.17 | O108: =M108-N108 -> 9250
M109: 0
C110: Sub Total - Special Sector | D110: =SUM(D105:D109) -> 549949.41 | E110: =SUM(E105:E109) -> 626257.96 | F110: 0 | G110: -76308.55 | H110: 0 | I110: 1.04 | J110: 10833.11 | K110: -10832.07 | L110: 0 | M110: 549950.45 | N110: 637091.07 | O110: -87140.62
M111: 0
B112: 10185 | C112: Northgate School | D112: =[50]Northg!$H$64 -> 100275.2 | E112: =VLOOKUP(B112,[51]EOY!$A$3:$F$99,4,0) -> 130915.42 | F112: 0 | G112: =D112-E112 -> -30640.22 | I112: =[50]Northg!$H$74 -> 10655.39 | J112: =VLOOKUP(B112,[51]EOY!$A$3:$F$99,6,0) -> 13665.38 | K112: =I112-J112 -> -3009.99 | M112: 110930.59 | N112: =E112+J112 -> 144580.8 | O112: =M112-N112 -> -33650.21
B113: 10188 | C113: Pavilion Study Centre | D113: =[50]Pavilion!$H$73 -> 114164.9 | E113: =VLOOKUP(B113,[51]EOY!$A$3:$F$99,4,0) -> 59022.41 | F113: 0 | G113: =D113-E113 -> 55142.49 | I113: =[50]Pavilion!$H$86 -> 8036.56 | J113: =VLOOKUP(B113,[51]EOY!$A$3:$F$99,6,0) -> 10651.25 | K113: =I113-J113 -> -2614.69 | M113: 122201.46 | N113: =E113+J113 -> 69673.66 | O113: =M113-N113 -> 52527.8
C114: Sub Total - Pupil referral units | D114: =SUM(D112:D113) -> 214440.1 | E114: 189937.83 | F114: 0 | G114: 24502.27 | H114: 0 | I114: 18691.95 | J114: 24316.63 | K114: -5624.68 | L114: 0 | M114: 233132.05 | N114: 214254.46 | O114: 18877.59
C116: Sub Total All Sectors | D116: =D110+D103+D92+D10+D114 -> 12285599.46 | E116: 11732089.52 | F116: 0 | G116: 553509.94 | H116: 0 | I116: 362002.65 | J116: 324951.9 | K116: 37050.75 | L116: 0 | M116: 12647602.11 | N116: 12057041.42 | O116: 590560.69
G121: Opening Balance | M121: ='[53]Integra Download 2017-18'!F11 -> -11252208.44
G122: St Mary's CE High Surplus balance | M122: 5405 | N122: to DSG
G123: clearance of balance sheet | M123: -23.8 | N123: from cash at bank
G124: clearance of balance sheet | M124: -1.66 | N124: from cash at bank
G125: clearance of balance sheet | M125: 165586.4 | N125: oak lodge cash at bank
G126: R/2016-17 licensed deficits to bal sheet | M126: -669206 | N126: to schools cc
G127: Schools Outturn 2017-18 | M127: -701250.72
G128: TRANSFER OF 17/18 ACTUALS TO BALANCE SHE | M128: -37379.52
G129: Balance carried forward | M129: =SUM(M121:M128) -> -12489078.74
G130: Net movement in school balances
K131: control | M131: ='[53]Integra Download 2017-18'!F30 -> -12489078.74
M132: =M129-M131 -> 0
